bitfinex-derivatives/quotes_BTCF0:USTF0_20241120
["timestamp","ask_amount","ask_price","bid_price","bid_amount"]
[1732136838375,0.37819228,94178.0,94177.0,0.053041]
[1732136838569,0.3608,94178.0,94177.0,0.053041]
[1732136839273,0.37819396,94178.0,94177.0,0.053041]
[1732136839481,0.36220001,94191.0,94190.0,0.053033]
[1732136839775,0.01765093,94191.0,94190.0,0.15366899]
[1732136839976,0.01765017,94191.0,94190.0,0.15366899]
[1732136840470,0.01771479,94191.0,94190.0,0.15366899]
[1732136842079,0.01771479,94191.0,94190.0,0.10063599]
[1732136844186,0.01771479,94191.0,94190.0,0.14687809]
[1732136847079,0.41523001,94196.0,94190.0,0.14687809]
[1732136847389,0.01761119,94195.0,94190.0,0.14687809]
[1732136847569,0.01761119,94194.0,94190.0,0.14687809]
[1732136847768,0.01761119,94193.0,94190.0,0.14687809]
[1732136847975,0.01761119,94192.0,94190.0,0.14687809]
[1732136848179,0.01761119,94191.0,94190.0,0.10063599]
[1732136848977,0.02855038,94191.0,94190.0,0.10063599]
[1732136849372,0.02855038,94191.0,94190.0,0.15366899]
[1732136849775,0.01093919,94191.0,94190.0,0.20057958]
[1732136851778,0.01093919,94191.0,94180.0,0.0328]
[1732136851779,0.02837872,94191.0,94183.0,0.31664461]
[1732136851981,0.3608,94187.0,94179.0,0.31664461]
[1732136852183,0.3608,94187.0,94178.0,0.31664461]
[1732136852184,0.053039,94179.0,94178.0,0.31664461]
[1732136852373,0.06397819,94179.0,94178.0,0.31664461]
[1732136852871,0.05304,94178.0,94177.0,1.81664461]
[1732136853075,0.06397919,94178.0,94176.0,0.67744461]
[1732136853272,0.01093919,94177.0,94176.0,0.67744461]
[1732136853485,0.01093919,94177.0,94176.0,0.77811308]
[1732136855481,0.01093919,94177.0,94176.0,0.46146847]
[1732136856080,0.01093919,94177.0,94176.0,0.60208847]
[1732136856886,0.01084136,94177.0,94176.0,0.60208847]
[1732136857078,0.01084136,94177.0,94176.0,0.63508847]
[1732136858385,0.01084136,94177.0,94176.0,0.52456847]
[1732136858685,0.01084136,94177.0,94176.0,0.63508847]
[1732136859975,0.01084136,94177.0,94176.0,0.52456847]
[1732136860379,0.053038,94183.0,94177.0,0.11052]
[1732136860578,0.0108371,94182.0,94181.0,0.10063599]
[1732136861376,0.0108371,94182.0,94181.0,0.41713662]
[1732136861788,0.01085206,94182.0,94181.0,0.41713662]
[1732136861987,0.01085206,94182.0,94181.0,0.10063599]
[1732136862186,0.01085206,94182.0,94181.0,0.41713303]
[1732136862687,0.01085206,94182.0,94181.0,0.10063599]
[1732136863996,0.0108556,94182.0,94181.0,0.10063599]
[1732136866093,0.0108556,94182.0,94181.0,0.15367399]
[1732136866887,0.0108556,94182.0,94181.0,0.10063599]
[1732136867192,0.0638936,94182.0,94181.0,0.10063599]
[1732136867383,0.08113794,94182.0,94181.0,0.31681407]
[1732136867583,0.08113794,94182.0,94174.0,0.31681407]
[1732136867584,0.02809994,94182.0,94174.0,0.31681407]
[1732136867778,0.10063599,94186.0,94172.0,0.31681407]
[1732136867779,0.053043,94173.0,94172.0,0.31681407]
[1732136867979,0.053043,94173.0,94166.0,0.31681407]
[1732136867980,0.02809994,94173.0,94166.0,0.31681407]
[1732136868180,0.053047,94165.0,94164.0,0.31681407]
[1732136868386,0.053047,94165.0,94163.0,0.31681407]
[1732136868387,0.053048,94164.0,94163.0,0.31681407]
[1732136868688,0.05305,94161.0,94160.0,1.5]
[1732136868874,0.0639056,94161.0,94160.0,1.55305]
[1732136869080,0.08112945,94161.0,94160.0,0.05305]
[1732136869887,0.08112945,94161.0,94160.0,0.05625016]
[1732136870294,0.08111146,94161.0,94160.0,0.05625016]
[1732136870591,0.05305,94161.0,94160.0,0.05625016]
[1732136870787,0.08098297,94161.0,94160.0,0.05625016]
[1732136871294,0.06379345,94161.0,94160.0,0.05625016]
[1732136872686,0.06379345,94161.0,94160.0,0.00320016]
[1732136876581,0.44170357,94161.0,94160.0,0.00320016]
[1732136876783,0.44170357,94161.0,94136.0,0.053064]
[1732136876784,0.053055,94152.0,94136.0,0.053064]
[1732136876994,0.4417094,94152.0,94138.0,0.10063599]
[1732136877199,0.4417094,94152.0,94144.0,0.053059]
[1732136877692,0.4417094,94152.0,94138.0,0.10063599]
[1732136877693,0.413855,94152.0,94138.0,0.10063599]
[1732136877893,0.413855,94152.0,94151.0,0.15369099]
[1732136877894,0.37133512,94152.0,94151.0,0.15369099]
[1732136878798,0.37133512,94152.0,94151.0,0.053055]
[1732136880490,0.01053512,94152.0,94151.0,0.51449099]
[1732136880691,0.00159351,94171.0,94170.0,0.053045]
[1732136880892,0.01219009,94171.0,94170.0,0.15368099]
[1732136881485,0.01232589,94171.0,94170.0,0.15368099]
[1732136881997,0.00159351,94171.0,94170.0,0.15368099]
[1732136882885,0.0329,94189.0,94170.0,0.18398099]
[1732136883194,0.01070321,94188.0,94187.0,0.053035]
[1732136883383,0.0329,94189.0,94187.0,0.053035]
[1732136884091,0.0329,94189.0,94184.0,0.10063599]
[1732136884290,0.0329,94189.0,94184.0,0.15367199]
[1732136884494,0.05304,94179.0,94177.0,0.10063599]
[1732136885291,0.053037,94184.0,94177.0,0.10063599]
[1732136885500,0.053037,94184.0,94176.0,0.3608]
[1732136885501,0.0329,94189.0,94183.0,0.10063599]
[1732136885796,0.01076736,94188.0,94183.0,0.10063599]
[1732136885997,0.01076736,94187.0,94183.0,0.10063599]
[1732136886313,0.0329,94189.0,94176.0,0.3608]
[1732136886314,0.01076714,94186.0,94176.0,0.10063599]
[1732136886499,0.053041,94177.0,94176.0,0.10063599]
[1732136887189,0.06372874,94177.0,94176.0,0.15367699]
[1732136887605,0.06372874,94177.0,94176.0,0.10063599]
[1732136888189,0.06372874,94177.0,94164.0,0.00159291]
[1732136888190,0.053045,94170.0,94164.0,0.00159291]
[1732136888385,0.053047,94165.0,94164.0,0.00159291]
[1732136888890,0.38238228,94165.0,94164.0,0.00159291]
[1732136889305,0.38238228,94165.0,94164.0,0.05464091]
[1732136889596,0.371647,94165.0,94164.0,0.05464091]
[1732136889796,0.38225252,94165.0,94164.0,0.05464091]
[1732136889999,0.38225252,94165.0,94164.0,0.00159291]
[1732136890203,0.38225252,94165.0,94154.0,0.10063599]
[1732136890204,0.053053,94155.0,94154.0,0.10063599]
[1732136890391,0.413853,94155.0,94154.0,0.10063599]
[1732136890586,0.053056,94150.0,94149.0,0.053056]
[1732136890900,0.413853,94155.0,94146.0,0.053058]
[1732136890901,0.053059,94147.0,94146.0,0.053058]
[1732136891102,0.053059,94147.0,94146.0,0.15369399]
[1732136891490,0.413859,94147.0,94146.0,0.15369399]
[1732136891697,0.06383826,94147.0,94146.0,0.15369399]
[1732136892007,0.42463826,94147.0,94146.0,0.15369399]
[1732136893096,0.42463826,94147.0,94146.0,0.10063599]
[1732136893296,0.05306,94144.0,94139.0,0.10063599]
[1732136893493,0.09393926,94143.0,94142.0,0.05306]
[1732136893687,0.09393926,94143.0,94135.0,9.547e-05]
[1732136893688,0.053064,94136.0,94135.0,9.547e-05]
[1732136893990,0.01088792,94136.0,94135.0,0.05315947]
[1732136894500,0.3608,94138.0,94137.0,0.053063]
[1732136895005,0.0301,94143.0,94142.0,0.05306]
[1732136895298,0.04078712,94143.0,94142.0,0.15369599]
[1732136895687,0.09384712,94143.0,94142.0,0.15369599]
[1732136896699,0.04078712,94143.0,94142.0,0.15369599]
[1732136896902,0.3608,94147.0,94146.0,0.053058]
[1732136897404,0.38202262,94147.0,94146.0,0.053058]
[1732136897903,0.392548,94147.0,94146.0,0.053058]
[1732136898407,0.053061,94142.0,94141.0,0.053059]
[1732136898604,0.36228,94147.0,94146.0,0.053058]
[1732136898900,0.36228,94147.0,94146.0,0.15369399]
[1732136898901,0.3608,94147.0,94146.0,0.15369399]
[1732136899106,0.03,94160.0,94146.0,0.15369399]
[1732136899293,0.03,94160.0,94155.0,0.15368899]
[1732136899496,0.053055,94152.0,94144.0,0.3608]
[1732136899692,0.36220001,94156.0,94148.0,0.053057]
[1732136899902,0.053055,94151.0,94147.0,0.053057]
[1732136900097,0.053055,94151.0,94150.0,0.053056]
[1732136900298,0.06398736,94151.0,94150.0,0.053056]
[1732136901111,0.01093236,94151.0,94150.0,0.053056]
[1732136901795,0.053052,94157.0,94156.0,0.053052]
[1732136901995,0.053052,94157.0,94156.0,0.10063599]
[1732136902604,0.053055,94151.0,94150.0,0.053056]
[1732136903104,0.053057,94149.0,94148.0,0.053057]
[1732136903409,0.06418797,94149.0,94148.0,0.053057]
[1732136903609,0.06425782,94149.0,94148.0,0.053057]
[1732136903995,0.053059,94145.0,94144.0,0.413859]
[1732136904195,0.06425982,94145.0,94144.0,0.413859]
[1732136905013,0.06425982,94145.0,94144.0,0.053059]
[1732136906206,0.06425982,94145.0,94135.0,9.547e-05]
[1732136906207,0.45805554,94145.0,94135.0,9.547e-05]
[1732136906510,0.053064,94136.0,94135.0,9.547e-05]
[1732136906813,0.06426482,94136.0,94135.0,0.05315947]
[1732136907413,0.01120082,94136.0,94135.0,0.05315947]
[1732136907710,0.053059,94145.0,94144.0,0.053059]
[1732136907907,0.06400007,94145.0,94144.0,0.053059]
[1732136911504,0.01094107,94145.0,94144.0,0.053059]
[1732136914002,0.01094107,94145.0,94141.0,0.053061]
[1732136914003,0.01097591,94145.0,94141.0,0.053061]
[1732136914222,0.01097591,94144.0,94142.0,0.0331]
[1732136914514,0.01097596,94143.0,94142.0,0.08616]
[1732136916618,0.01097596,94143.0,94142.0,0.0331]
[1732136916818,0.06403596,94143.0,94142.0,0.0331]
[1732136917015,0.08160448,94143.0,94142.0,0.0331]
[1732136917421,0.02854448,94143.0,94135.0,9.547e-05]
[1732136917722,0.053064,94136.0,94135.0,9.547e-05]
[1732136917905,0.16470244,94136.0,94135.0,9.547e-05]
[1732136918107,0.18230638,94136.0,94135.0,9.547e-05]
[1732136920007,0.08167039,94136.0,94135.0,9.547e-05]
[1732136921318,0.053064,94136.0,94135.0,9.547e-05]
[1732136921516,0.08164323,94136.0,94135.0,9.547e-05]
[1732136922314,0.61135922,94136.0,94135.0,9.547e-05]
[1732136923403,0.64245922,94136.0,94135.0,9.547e-05]
[1732136924321,0.58949069,94136.0,94122.0,0.2538562]
[1732136924505,0.10063599,94124.0,94117.0,0.6146562]
[1732136924725,0.053074,94118.0,94117.0,0.6677302]
[1732136925008,0.08114401,94118.0,94117.0,0.413874]
[1732136925415,0.02806384,94118.0,94114.0,0.2538562]
[1732136925618,0.15370599,94124.0,94114.0,0.053076]
[1732136925619,0.053077,94115.0,94114.0,0.053076]
[1732136925822,0.08098856,94115.0,94114.0,0.053076]
[1732136926020,0.06387316,94115.0,94114.0,0.053076]
[1732136926214,0.08098863,94115.0,94114.0,0.053076]
[1732136926413,0.06387316,94115.0,94114.0,0.053076]
[1732136927014,0.01079616,94115.0,94114.0,0.053076]
[1732136927513,0.06387216,94115.0,94114.0,0.053076]
[1732136928330,0.06367725,94115.0,94114.0,0.053076]
[1732136928621,0.053076,94115.0,94114.0,0.053076]
[1732136928819,0.06367654,94115.0,94114.0,0.053076]
[1732136929123,0.01060054,94115.0,94114.0,0.053076]
[1732136929822,0.05307,94126.0,94114.0,0.053076]
[1732136930019,0.02769746,94124.0,94123.0,0.053071]
[1732136930211,0.01065287,94124.0,94123.0,0.053071]
[1732136930433,0.06372287,94124.0,94123.0,0.053071]
[1732136931923,0.01065287,94124.0,94123.0,0.053071]
[1732136933020,0.053072,94122.0,94121.0,0.3608]
[1732136933222,0.01053604,94122.0,94114.0,0.04690014]
[1732136933417,0.06360883,94121.0,94119.0,0.053073]
[1732136933618,0.01053683,94120.0,94119.0,0.053073]
[1732136934125,0.01053683,94120.0,94115.0,0.053075]
[1732136934429,0.053075,94116.0,94115.0,0.053075]
[1732136934727,0.06361183,94116.0,94115.0,0.053075]
[1732136934919,0.01053683,94116.0,94115.0,0.053075]
[1732136935110,0.01061464,94116.0,94115.0,0.053076]
[1732136937212,0.41387,94125.0,94123.0,0.053071]
[1732136937521,0.01056509,94124.0,94123.0,0.053071]
[1732136938920,0.41395947,94136.0,94132.0,0.053065]
[1732136939117,0.41395947,94136.0,94133.0,0.033]
[1732136939118,0.01683129,94135.0,94133.0,0.033]
[1732136939316,0.01051956,94134.0,94133.0,0.033]
[1732136939521,0.01051956,94134.0,94133.0,0.086065]
[1732136939719,0.01051956,94134.0,94133.0,0.116465]
[1732136941328,0.01051956,94134.0,94133.0,0.0634]
[1732136941329,0.06356748,94134.0,94133.0,0.0634]
[1732136941630,0.01050364,94134.0,94133.0,0.116465]
[1732136947735,9.547e-05,94136.0,94135.0,0.053064]
[1732136948122,0.01069624,94136.0,94135.0,0.053064]
[1732136950232,0.02762705,94136.0,94135.0,0.15369999]
[1732136950433,0.01069624,94136.0,94135.0,0.413864]
[1732136951622,0.01069624,94136.0,94135.0,0.51449999]
[1732136951936,0.3608,94154.0,94153.0,0.053054]
[1732136952236,0.37776718,94154.0,94153.0,0.053054]
[1732136953131,0.3608,94154.0,94153.0,0.053054]
[1732136955436,0.00159384,94155.0,94154.0,0.053054]
[1732136957025,0.00159384,94155.0,94154.0,0.413854]
[1732136966633,0.053048,94164.0,94154.0,0.413854]
[1732136966839,0.053048,94164.0,94162.0,0.053049]
[1732136966840,0.0104679,94163.0,94162.0,0.053049]
[1732136967443,0.01049691,94163.0,94162.0,0.053049]
[1732136968547,0.053048,94164.0,94162.0,0.053049]
[1732136968752,0.01047816,94163.0,94162.0,0.053049]
[1732136968937,0.01047186,94163.0,94162.0,0.053049]
[1732136970645,0.01047186,94163.0,94162.0,0.061539]
[1732136971945,0.053047,94165.0,94162.0,0.00849]
[1732136972152,0.01051095,94164.0,94163.0,0.053048]
[1732136974752,0.01051095,94164.0,94163.0,0.15368399]
[1732136974938,0.01051095,94164.0,94163.0,0.413848]
[1732136975142,0.0306,94181.0,94174.0,0.053042]
[1732136975343,0.3888475,94175.0,94171.0,0.10063599]
[1732136975541,0.053043,94173.0,94168.0,0.053045]
[1732136975743,0.01078767,94172.0,94168.0,0.053045]
[1732136975942,0.02804795,94171.0,94165.0,0.10063599]
[1732136976150,0.02804795,94170.0,94169.0,0.053045]
[1732136977047,0.01112102,94170.0,94169.0,0.02654]
[1732136977247,0.01112102,94170.0,94169.0,0.079585]
[1732136977463,0.02891466,94170.0,94169.0,0.079585]
[1732136979349,0.02904566,94170.0,94169.0,0.079585]
[1732136980151,0.34760566,94170.0,94162.0,0.00849]
[1732136980347,0.053054,94164.0,94162.0,0.00849]
[1732136980550,0.02904566,94163.0,94162.0,0.00849]
[1732136985251,0.02904566,94163.0,94162.0,0.061544]
[1732136985645,0.3608,94165.0,94164.0,0.053053]
[1732136986053,0.5654829,94165.0,94164.0,0.053053]
[1732136986758,0.54892413,94165.0,94164.0,0.053053]
[1732136987056,0.5654829,94165.0,94164.0,0.053053]
[1732136987852,0.6185359,94165.0,94164.0,0.053053]
[1732136988057,0.4948849,94165.0,94164.0,0.053053]
[1732136988245,0.053054,94162.0,94161.0,0.01062]
[1732136988448,0.49488944,94162.0,94161.0,0.01062]
[1732136988957,0.50152185,94162.0,94161.0,0.01062]
[1732136989350,0.47697807,94162.0,94161.0,0.01062]
[1732136989549,0.50208403,94162.0,94161.0,0.01062]
[1732136989966,0.50208403,94162.0,94161.0,0.01911]
[1732136990152,0.50209241,94162.0,94161.0,0.01911]
[1732136990454,0.50209506,94162.0,94161.0,0.01911]
[1732136991852,0.50209506,94162.0,94161.0,0.04566]
[1732136992362,0.46543484,94162.0,94161.0,0.04566]
[1732136992553,0.5020168,94162.0,94161.0,0.04566]
[1732136992743,0.94502501,94162.0,94161.0,0.04566]
[1732136993056,0.94502501,94162.0,94137.0,0.084168]
[1732136993057,0.053063,94148.0,94147.0,0.053063]
[1732136993259,0.57485317,94148.0,94147.0,0.053063]
[1732136994947,0.52179017,94148.0,94147.0,0.053063]
[1732136998762,0.48520821,94148.0,94147.0,0.053063]
[1732136998947,0.52222472,94148.0,94147.0,0.053063]
[1732136999747,0.52222472,94148.0,94147.0,0.079613]
[1732136999949,0.57528672,94148.0,94147.0,0.079613]
[1732137001453,0.53827021,94148.0,94147.0,0.02655]
[1732137001667,0.57547421,94148.0,94147.0,0.02655]
[1732137002167,0.57547421,94148.0,94147.0,0.03504]
[1732137002763,0.73430571,94148.0,94147.0,0.03504]
[1732137003067,0.57547421,94148.0,94147.0,0.03504]
[1732137003266,0.73384062,94148.0,94147.0,0.03504]
[1732137003568,0.7338263,94148.0,94147.0,0.03504]
[1732137003755,0.73380055,94148.0,94147.0,0.03504]
[1732137003955,0.7337943,94148.0,94147.0,0.03504]
[1732137004356,0.57547421,94148.0,94147.0,0.03504]
[1732137006254,0.85691021,94148.0,94147.0,0.03504]
[1732137006452,0.053072,94131.0,94130.0,0.053072]
[1732137006654,0.413872,94131.0,94130.0,0.053072]
[1732137006862,0.57585021,94131.0,94130.0,0.053072]
[1732137008052,0.053074,94128.0,94127.0,0.0316]
[1732137008258,0.08403855,94128.0,94127.0,0.0316]
[1732137008556,0.08403855,94128.0,94123.0,0.00159332]
[1732137008557,0.053076,94124.0,94123.0,0.00159332]
[1732137008757,0.45147493,94124.0,94123.0,0.00159332]
[1732137008958,0.57588314,94124.0,94123.0,0.00159332]
[1732137009562,0.57588314,94124.0,94117.0,0.033]
[1732137009563,0.053079,94118.0,94117.0,0.033]
[1732137009761,0.053079,94118.0,94117.0,0.08608]
[1732137009762,0.09067793,94118.0,94117.0,0.08608]
[1732137010062,0.21508614,94118.0,94117.0,0.08608]
[1732137010659,0.16200714,94118.0,94117.0,0.08608]
[1732137011270,0.12440821,94118.0,94117.0,0.09268]
[1732137011459,0.16174442,94118.0,94117.0,0.09268]
[1732137011657,0.15510413,94118.0,94117.0,0.09268]
[1732137012371,0.16173946,94118.0,94117.0,0.0396]
[1732137012572,0.21481846,94118.0,94117.0,0.0396]
[1732137013376,0.15510413,94118.0,94117.0,0.09268]
[1732137014265,0.12440821,94118.0,94117.0,0.09268]
[1732137014460,0.15435156,94118.0,94117.0,0.09268]
[1732137014658,0.51515156,94118.0,94117.0,0.09268]
[1732137015469,0.15435156,94118.0,94117.0,0.10118]
[1732137015665,0.03592488,94118.0,94117.0,0.10118]
[1732137015975,0.3608,94128.0,94127.0,0.053074]
[1732137016169,0.37919369,94128.0,94127.0,0.15370999]
[1732137016673,0.37919369,94128.0,94127.0,0.16219999]
[1732137017472,0.3608,94128.0,94127.0,0.16219999]
[1732137017770,0.01830892,94128.0,94127.0,0.16219999]
[1732137017977,0.36239416,94137.0,94136.0,0.053069]
[1732137021365,0.36239416,94137.0,94136.0,0.085569]
[1732137021567,0.36239416,94137.0,94136.0,0.18620499]
[1732137021775,0.36239416,94137.0,94136.0,0.085569]
[1732137021776,0.00159416,94137.0,94136.0,0.085569]
[1732137022083,0.00159416,94137.0,94136.0,1.585569]
[1732137023972,0.3608,94148.0,94147.0,0.053063]
[1732137024164,0.3608,94148.0,94147.0,0.15369899]
[1732137027975,0.37200169,94148.0,94147.0,0.15369899]
[1732137028170,0.38992451,94148.0,94147.0,0.15369899]
[1732137028682,0.38992451,94148.0,94147.0,0.19929174]
[1732137029877,0.38992451,94148.0,94147.0,0.22584174]
[1732137030078,0.38992451,94148.0,94147.0,0.23433174]
[1732137030378,0.02912451,94148.0,94147.0,0.23433174]
[1732137031285,0.01120169,94148.0,94147.0,0.23433174]
[1732137031480,0.02879951,94148.0,94147.0,0.23433174]
[1732137033385,0.01120169,94148.0,94147.0,0.23433174]
[1732137033886,0.02892041,94148.0,94147.0,0.23433174]
[1732137034075,0.3608,94149.0,94147.0,0.18126874]
[1732137034386,0.3608,94149.0,94148.0,0.053062]
[1732137034584,0.053059,94154.0,94153.0,0.053059]
[1732137034882,0.08187203,94154.0,94153.0,0.053059]
[1732137036778,0.02881303,94154.0,94153.0,0.053059]
[1732137037486,0.02874565,94154.0,94153.0,0.053059]
[1732137038787,0.01105602,94154.0,94153.0,0.053059]
[1732137039085,0.01105602,94154.0,94153.0,0.059629]
[1732137039289,0.01105602,94154.0,94153.0,0.12709099]
[1732137039586,0.0286195,94154.0,94153.0,0.12709099]
[1732137039779,0.1129785,94154.0,94153.0,0.07403199]
[1732137040386,0.1129785,94154.0,94153.0,0.12709099]
[1732137040683,0.1129785,94154.0,94147.0,0.08063275]
[1732137040684,0.053062,94148.0,94147.0,0.03504]
[1732137040986,0.0816815,94148.0,94147.0,0.03504]
[1732137041793,0.0816815,94148.0,94147.0,0.088103]
[1732137042491,0.0286195,94148.0,94147.0,0.088103]
[1732137042789,0.0286195,94148.0,94147.0,0.18907263]
[1732137046683,0.0286195,94148.0,94147.0,0.19756263]
[1732137046987,0.08173312,94148.0,94147.0,0.19756263]
[1732137048082,0.02867112,94148.0,94147.0,0.19756263]
[1732137049095,0.08173312,94148.0,94147.0,0.19756263]
[1732137050187,0.08173312,94148.0,94147.0,0.04353]
[1732137050494,0.08173312,94148.0,94138.0,1.5]
[1732137050495,0.23429022,94148.0,94138.0,0.25445337]
[1732137050792,0.413868,94139.0,94138.0,0.30752591]
[1732137050986,0.413868,94139.0,94138.0,0.053068]
[1732137051189,0.43147552,94139.0,94138.0,0.053068]
[1732137051399,0.44248022,94139.0,94138.0,0.053068]
[1732137051584,0.44248022,94139.0,94135.0,0.25445791]
[1732137051787,0.05307,94135.0,94134.0,0.25445791]
[1732137051991,0.05307,94135.0,94128.0,1.5]
[1732137051992,0.053073,94129.0,94128.0,1.5]
[1732137052183,0.44248522,94129.0,94128.0,1.553074]
[1732137052389,0.44248522,94129.0,94128.0,0.053074]
[1732137055686,0.44248522,94129.0,94128.0,0.061564]
[1732137057389,0.413873,94129.0,94128.0,0.061564]
[1732137057580,0.44254892,94129.0,94128.0,0.061564]
[1732137057795,0.3608,94129.0,94128.0,0.061564]
[1732137058182,0.4425541,94129.0,94128.0,0.061564]
[1732137058397,0.4425541,94129.0,94128.0,0.00849]
[1732137060795,0.44233764,94129.0,94128.0,0.00849]
[1732137062987,0.44224171,94129.0,94128.0,0.00849]
[1732137063896,0.48887374,94129.0,94128.0,0.00849]
[1732137065500,0.48887374,94129.0,94128.0,0.01698]
[1732137066297,0.48868943,94129.0,94128.0,0.01698]
[1732137066996,0.48868943,94129.0,94128.0,0.02529]
[1732137069195,0.80740943,94129.0,94128.0,0.02529]
[1732137069401,0.77922503,94129.0,94128.0,0.02529]
[1732137069593,0.77922503,94129.0,94118.0,0.053079]
[1732137069594,0.053079,94119.0,94118.0,0.053079]
[1732137069905,0.44204866,94119.0,94118.0,0.053079]
[1732137070094,0.053079,94118.0,94117.0,0.00159356]
[1732137070297,0.08124866,94118.0,94117.0,0.00159356]
[1732137071296,0.053079,94118.0,94117.0,0.00159356]
[1732137071491,0.08135145,94118.0,94117.0,0.00159356]
[1732137072797,0.053079,94118.0,94117.0,0.00159356]
[1732137072994,0.08131003,94118.0,94117.0,0.00159356]
[1732137074403,0.053079,94118.0,94117.0,0.00159356]
[1732137074613,0.08128268,94118.0,94117.0,0.00159356]
[1732137077109,0.08128268,94118.0,94108.0,0.053084]
[1732137077304,0.413884,94109.0,94108.0,0.053084]
[1732137077503,0.44208768,94109.0,94108.0,0.053084]
[1732137079704,0.44208768,94109.0,94108.0,0.070084]
[1732137080108,0.44208768,94109.0,94108.0,0.071084]
[1732137080310,0.44208768,94109.0,94108.0,0.019]
[1732137082823,0.413884,94109.0,94108.0,0.019]
[1732137083029,0.43112608,94109.0,94108.0,0.019]
[1732137083326,0.44190238,94109.0,94108.0,0.018]
[1732137083627,0.44190238,94109.0,94108.0,0.017]
[1732137085628,0.44190238,94109.0,94103.0,0.00011274]
[1732137085831,0.51485663,94104.0,94103.0,0.00011274]
[1732137086022,0.62425663,94104.0,94103.0,0.00011274]
[1732137086217,0.65197347,94104.0,94103.0,0.00011274]
[1732137089440,0.62425663,94104.0,94103.0,0.00011274]
[1732137089623,0.69968705,94104.0,94103.0,0.00011274]
[1732137090536,0.69968705,94104.0,94103.0,0.05320074]
[1732137090537,0.38843153,94104.0,94103.0,0.05320074]
[1732137090724,0.33843153,94104.0,94103.0,0.06170074]
[1732137090919,0.37451451,94104.0,94103.0,0.07020074]
[1732137091127,0.3915185,94104.0,94103.0,0.01711274]
[1732137091423,0.3915185,94104.0,94103.0,0.07020074]
[1732137092526,0.3384315,94104.0,94103.0,0.07020074]
[1732137092932,0.32142751,94104.0,94103.0,0.32454271]
[1732137093136,0.32142751,94104.0,94103.0,0.13370074]
[1732137093331,0.3108,94104.0,94103.0,0.13370074]
[1732137093526,0.05308,94116.0,94115.0,0.053081]
[1732137093832,0.08078111,94116.0,94115.0,0.053081]
[1732137094433,0.02770111,94116.0,94115.0,0.15405063]
[1732137094632,0.02770111,94116.0,94115.0,0.053081]
[1732137095943,0.08078111,94116.0,94115.0,0.053081]
[1732137096647,0.05308,94116.0,94115.0,0.053081]
[1732137096835,0.08057997,94116.0,94115.0,0.053081]
[1732137097346,0.08057997,94116.0,94108.0,0.25410617]
[1732137097347,0.053084,94110.0,94109.0,0.25410617]
[1732137097637,0.053085,94108.0,94107.0,0.25410617]
[1732137097830,0.053085,94107.0,94106.0,0.25410617]
[1732137098033,0.08063654,94107.0,94106.0,0.25410617]
[1732137098232,0.02755154,94107.0,94105.0,0.25410617]
[1732137098437,0.08063754,94106.0,94105.0,0.30719217]
[1732137098938,0.08063754,94106.0,94105.0,0.053086]
[1732137099747,0.06365397,94106.0,94105.0,0.053086]
[1732137099940,0.08056273,94106.0,94105.0,0.053086]
[1732137100930,0.02747673,94106.0,94105.0,0.053086]
[1732137102731,0.02747673,94106.0,94105.0,0.30719217]
[1732137102961,0.413884,94110.0,94105.0,0.25410617]
[1732137103236,0.413884,94110.0,94103.0,0.08061274]
[1732137103237,0.413884,94110.0,94109.0,0.053084]
[1732137103436,0.44123898,94110.0,94109.0,0.053084]
[1732137103943,0.413884,94110.0,94109.0,0.053084]
[1732137104243,0.44127086,94110.0,94109.0,0.053084]
[1732137107139,0.44132276,94110.0,94109.0,0.053084]
[1732137110846,0.44151002,94110.0,94109.0,0.053084]
[1732137111153,0.38842602,94110.0,94109.0,0.053084]
[1732137117248,0.44151002,94110.0,94109.0,0.053084]
[1732137120067,0.44151002,94110.0,94109.0,0.30745342]
[1732137120246,0.38842602,94110.0,94109.0,0.30745342]
[1732137120552,0.3608,94110.0,94109.0,0.12061744]
[1732137120753,0.3608,94110.0,94109.0,0.12911744]
[1732137120754,0.38827979,94110.0,94109.0,0.12911744]
[1732137121152,0.37136915,94110.0,94109.0,0.12911744]
[1732137121458,0.37122326,94110.0,94109.0,0.12911744]
[1732137126048,0.37125911,94110.0,94109.0,0.061584]
[1732137126460,0.37125949,94110.0,94109.0,0.061584]
[1732137128053,0.38807589,94110.0,94109.0,0.061584]
[1732137129052,0.42434349,94110.0,94109.0,0.061584]
[1732137129955,0.44117027,94110.0,94109.0,0.061584]
[1732137130459,0.44117027,94110.0,94107.0,0.06753344]
[1732137130666,0.44117027,94110.0,94086.0,1.5]
[1732137130667,0.06753344,94106.0,94090.0,0.22527652]
[1732137130864,0.05311,94063.0,94060.0,0.053112]
[1732137131067,0.06753344,94061.0,94056.0,0.053114]
[1732137131254,0.01045949,94060.0,94056.0,0.053114]
[1732137131454,0.51951131,94068.0,94047.0,0.06753344]
[1732137131455,0.01045949,94059.0,94047.0,0.06753344]
[1732137131657,0.01045949,94058.0,94057.0,0.06753344]
[1732137131961,9.775e-05,94064.0,94063.0,0.05311]
[1732137132262,9.775e-05,94064.0,94057.0,0.06753344]
[1732137132462,0.12064544,94061.0,94051.0,8.938e-05]
[1732137132756,0.12064544,94061.0,94051.0,0.05320638]
[1732137132757,0.001,94059.0,94051.0,0.05320638]
[1732137132961,0.053114,94057.0,94051.0,8.938e-05]
[1732137133358,0.06753344,94053.0,94051.0,8.938e-05]
[1732137133554,0.3608,94052.0,94051.0,8.938e-05]
[1732137133957,0.3608,94052.0,94051.0,0.00108938]
[1732137135468,0.3608,94059.0,94056.0,0.053114]
[1732137135655,0.053112,94060.0,94056.0,0.053114]
[1732137135852,0.3608,94057.0,94056.0,0.053114]
[1732137136050,0.053113,94059.0,94056.0,0.053114]
[1732137136256,0.053114,94056.0,94051.0,0.05520638]
[1732137136559,0.3608,94055.0,94051.0,0.05520638]
[1732137136759,0.3608,94055.0,94051.0,0.05420638]
[1732137136962,0.413915,94055.0,94051.0,0.00108938]
[1732137137159,0.3608,94055.0,94054.0,0.053115]
[1732137139963,0.3608,94055.0,94054.0,0.372075]
[1732137140162,9.775e-05,94064.0,94063.0,0.05311]
[1732137140365,9.775e-05,94064.0,94063.0,0.15433239]
[1732137140758,9.775e-05,94064.0,94063.0,0.47325239]
[1732137141968,9.775e-05,94064.0,94063.0,0.52021611]
[1732137142365,9.775e-05,94064.0,94063.0,2.02021611]
[1732137142563,0.00109775,94064.0,94063.0,2.02121611]
[1732137142763,0.3608,94076.0,94075.0,0.053103]
[1732137143073,0.053096,94089.0,94075.0,0.15432539]